bitfinex/quotes_BTCUSD_20240623
["timestamp","ask_amount","ask_price","bid_price","bid_amount"]
[1719147980808,0.8964503,64516.0,64515.0,0.64992982]
[1719147981009,0.8964503,64516.0,64515.0,0.63044171]
[1719147981216,0.88678985,64516.0,64515.0,0.63044171]
[1719147981410,0.8954503,64516.0,64515.0,0.63044171]
[1719147981614,0.8954503,64516.0,64515.0,0.63144171]
[1719147982419,0.98852874,64516.0,64515.0,0.63144171]
[1719147982827,0.98852874,64516.0,64515.0,0.65092982]
[1719147983156,0.98852874,64516.0,64515.0,0.63144171]
[1719147983748,0.8954503,64516.0,64515.0,0.63144171]
[1719147983949,0.88578985,64516.0,64515.0,0.63144171]
[1719147984205,0.89545032,64516.0,64515.0,0.63144171]
[1719147985439,0.89645032,64516.0,64515.0,0.63244171]
[1719147985947,0.89545032,64516.0,64515.0,0.63144171]
[1719147986169,0.89545032,64516.0,64515.0,0.63044171]
[1719147986369,0.89645032,64516.0,64515.0,0.63044171]
[1719147986898,0.89645032,64516.0,64515.0,0.60268821]
[1719147987125,0.88678985,64516.0,64515.0,0.60268821]
[1719147987331,0.8964505,64516.0,64515.0,0.60268821]
[1719147987978,0.8964505,64516.0,64515.0,0.62217632]
[1719147988918,0.8964505,64516.0,64515.0,0.60268821]
[1719147989562,0.8964505,64516.0,64515.0,0.68490584]
[1719147990142,1.01279024,64516.0,64515.0,0.68490584]
[1719147990341,1.01278665,64516.0,64515.0,0.68490584]
[1719147990540,1.05857446,64516.0,64515.0,0.53036126]
[1719147990796,0.94223842,64516.0,64515.0,0.53036126]
[1719147990996,0.94224164,64516.0,64515.0,0.53036126]
[1719147991822,1.05857928,64516.0,64515.0,0.53036126]
[1719147992043,0.94224164,64516.0,64515.0,0.53036126]
[1719147992398,1.25224164,64516.0,64515.0,0.53036126]
[1719147992801,1.36857981,64516.0,64515.0,0.53036126]
[1719147993370,1.19678985,64516.0,64515.0,0.53036126]
[1719147993579,1.36857391,64516.0,64515.0,0.53036126]
[1719147994169,1.25223721,64516.0,64515.0,0.53036126]
[1719147994369,1.36857283,64516.0,64515.0,0.53036126]
[1719147994699,1.25223721,64516.0,64515.0,0.53036126]
[1719147996543,1.19678985,64516.0,64515.0,0.53036126]
[1719147996744,1.25278487,64516.0,64515.0,0.53036126]
[1719147997520,1.25278487,64516.0,64515.0,0.44814363]
[1719147999759,1.19678985,64516.0,64515.0,0.44814363]
[1719147999979,1.2529662,64516.0,64515.0,0.44814363]
[1719148000311,1.25290131,64516.0,64515.0,0.44814363]
[1719148001257,1.19678985,64516.0,64515.0,0.44814363]
[1719148001510,1.25254561,64516.0,64515.0,0.44814363]
[1719148002077,1.19678985,64516.0,64515.0,0.44814363]
[1719148002275,1.24284866,64516.0,64515.0,0.44814363]
[1719148002500,1.2525652,64516.0,64515.0,0.44814363]
[1719148006258,1.25258003,64516.0,64515.0,0.44814363]
[1719148009425,1.25241678,64516.0,64515.0,0.44814363]
[1719148009835,1.20645141,64516.0,64515.0,0.44814363]
[1719148010050,1.25241678,64516.0,64515.0,0.44814363]
[1719148013498,1.56241678,64516.0,64515.0,0.25354363]
[1719148013904,1.56241678,64516.0,64515.0,0.10098251]
[1719148014064,1.56241678,64516.0,64515.0,0.080935]
[1719148014065,1.70204933,64516.0,64515.0,0.080935]
[1719148014473,1.56241678,64516.0,64515.0,0.080935]
[1719148015522,1.50678985,64516.0,64515.0,0.080935]
[1719148015731,1.56059414,64516.0,64515.0,0.080935]
[1719148016865,1.87059414,64516.0,64515.0,0.080935]
[1719148018713,1.81678985,64516.0,64515.0,0.080935]
[1719148018914,1.87104201,64516.0,64515.0,0.080935]
[1719148019115,1.87104186,64516.0,64515.0,0.080935]
[1719148019765,1.395175,64508.0,64507.0,0.000935]
[1719148019989,0.465115,64500.0,64499.0,0.08]
[1719148020194,1.23952101,64500.0,64499.0,0.23256112]
[1719148020397,1.54959801,64500.0,64499.0,0.23256112]
[1719148020605,1.54959801,64500.0,64499.0,0.2553616]
[1719148020805,1.54959801,64500.0,64499.0,0.10280048]
[1719148021194,1.55017733,64500.0,64499.0,0.10280048]
[1719148021411,1.395477,64494.0,64493.0,0.103]
[1719148021622,1.55030833,64494.0,64493.0,0.25556112]
[1719148021828,1.59815195,64494.0,64493.0,0.27836745]
[1719148022028,1.66709639,64494.0,64493.0,0.27836745]
[1719148022238,1.66709639,64494.0,64493.0,0.17536745]
[1719148022239,1.55077118,64494.0,64493.0,0.17536745]
[1719148022463,1.66709639,64494.0,64493.0,0.17536745]
[1719148022991,1.66709639,64494.0,64493.0,0.02280633]
[1719148023212,1.86087718,64494.0,64493.0,0.02280633]
[1719148023415,1.085388,64493.0,64492.0,0.08]
[1719148023543,1.55079318,64493.0,64492.0,0.08]
[1719148023771,1.66695073,64493.0,64492.0,0.08]
[1719148024173,1.66656253,64493.0,64492.0,0.08]
[1719148024355,1.64329081,64493.0,64492.0,0.08]
[1719148025275,1.55040512,64493.0,64492.0,0.08]
[1719148025898,1.55240512,64493.0,64492.0,0.08]
[1719148026337,1.5767834,64493.0,64492.0,0.08]
[1719148027112,1.50716447,64493.0,64492.0,0.08]
[1719148027777,1.497499,64493.0,64492.0,0.08]
[1719148027940,1.50716446,64493.0,64492.0,0.08]
[1719148028141,1.55355428,64493.0,64492.0,0.08]
[1719148028927,1.55355367,64493.0,64492.0,0.08]
[1719148029351,1.50716446,64493.0,64492.0,0.08]
[1719148029913,1.55355367,64493.0,64492.0,0.08]
[1719148030251,1.55353746,64493.0,64492.0,0.08]
[1719148031153,1.7060916,64493.0,64492.0,0.08]
[1719148031845,1.55353746,64493.0,64492.0,0.08]
[1719148033472,1.497499,64493.0,64492.0,0.08]
[1719148033587,1.55351627,64493.0,64492.0,0.08]
[1719148034429,1.5988858,64493.0,64492.0,0.08]
[1719148036232,1.55253449,64493.0,64492.0,0.08]
[1719148036455,1.61528755,64493.0,64492.0,0.08]
[1719148036653,1.6152872,64493.0,64492.0,0.08]
[1719148037059,1.395517,64492.0,64491.0,0.00031011]
[1719148037252,0.46518,64491.0,64484.0,0.08]
[1719148037474,0.57484607,64491.0,64484.0,0.08]
[1719148037675,1.50520607,64491.0,64484.0,0.08]
[1719148038271,1.50520615,64491.0,64484.0,0.08]
[1719148038468,1.49854989,64491.0,64484.0,0.08]
[1719148038898,1.49854989,64491.0,64490.0,0.001935]
[1719148039870,1.4985499,64491.0,64490.0,0.001935]
[1719148041265,1.5045499,64491.0,64490.0,0.02500353]
[1719148041427,1.5045499,64491.0,64490.0,0.002935]
[1719148043046,1.50454964,64491.0,64490.0,0.002935]
[1719148045264,1.5497374,64491.0,64490.0,0.002935]
[1719148046225,1.54952463,64491.0,64490.0,0.002935]
[1719148046610,1.54952404,64491.0,64490.0,0.002935]
[1719148049427,1.5398097,64491.0,64490.0,0.002935]
[1719148049616,1.5494754,64491.0,64490.0,0.002935]
[1719148052459,1.49488374,64491.0,64490.0,0.002935]
[1719148052633,1.54947035,64491.0,64490.0,0.002935]
[1719148055410,1.59581434,64491.0,64490.0,0.002935]
[1719148055552,1.49488374,64491.0,64490.0,0.002935]
[1719148055757,1.59586972,64491.0,64490.0,0.002935]
[1719148056045,1.54932388,64491.0,64490.0,0.002935]
[1719148057246,1.61891145,64491.0,64490.0,0.002935]
[1719148058207,1.54932388,64491.0,64490.0,0.002935]
[1719148058855,1.53926638,64491.0,64490.0,0.002935]
[1719148059193,1.54893228,64491.0,64490.0,0.002935]
[1719148059845,1.64182137,64491.0,64490.0,0.002935]
[1719148060173,1.54893228,64491.0,64490.0,0.002935]
[1719148060404,1.66500384,64491.0,64490.0,0.002935]
[1719148061137,1.54893228,64491.0,64490.0,0.002935]
[1719148061998,1.53845279,64491.0,64490.0,0.002935]
[1719148062151,1.54811879,64491.0,64490.0,0.002935]
[1719148062360,1.54811913,64491.0,64490.0,0.002935]
[1719148063920,1.54811913,64491.0,64490.0,0.00034963]
[1719148064222,1.68760678,64491.0,64490.0,0.00034963]
[1719148065440,1.54812212,64491.0,64490.0,0.00034963]
[1719148067010,1.54817322,64491.0,64490.0,0.00034963]
[1719148068432,1.54819528,64491.0,64490.0,0.00034963]
[1719148071697,1.54819617,64491.0,64490.0,0.00034963]
[1719148074835,1.49488374,64491.0,64490.0,0.00034963]
[1719148075030,1.54813352,64491.0,64490.0,0.00034963]
[1719148075235,1.54810691,64491.0,64490.0,0.00034963]
[1719148076195,1.54810691,64491.0,64490.0,0.09884963]
[1719148076576,1.54817816,64491.0,64490.0,0.09884963]
[1719148077345,1.54817816,64491.0,64490.0,0.12085377]
[1719148078123,1.60186485,64491.0,64490.0,0.12085377]
[1719148078326,1.55806239,64491.0,64490.0,0.12085377]
[1719148078839,1.55806239,64491.0,64490.0,0.20225377]
[1719148080847,1.55807704,64491.0,64490.0,0.20225377]
[1719148081348,1.55807704,64491.0,64490.0,0.18024963]
[1719148081461,1.55807704,64491.0,64490.0,0.33479421]
[1719148081668,1.55807704,64491.0,64490.0,0.20225377]
[1719148083322,1.50454971,64491.0,64490.0,0.20225377]
[1719148083523,1.55916633,64491.0,64490.0,0.20225377]
[1719148083718,1.50454971,64491.0,64490.0,0.20225377]
[1719148083917,1.55916618,64491.0,64490.0,0.20225377]
[1719148084095,1.55916618,64491.0,64490.0,0.18024963]
[1719148084932,1.54945744,64491.0,64490.0,0.18024963]
[1719148085136,1.55912289,64491.0,64490.0,0.18024963]
[1719148086642,1.5591274,64491.0,64490.0,0.18024963]
[1719148089040,1.5591274,64491.0,64490.0,0.18118463]
[1719148089439,1.5599774,64491.0,64490.0,0.18118463]
[1719148092892,1.50539971,64491.0,64490.0,0.18118463]
[1719148093108,1.51506516,64491.0,64490.0,0.18118463]
[1719148093669,1.55004871,64491.0,64490.0,0.20318877]
[1719148093846,1.55971416,64491.0,64490.0,0.20318877]
[1719148094052,1.55004819,64491.0,64490.0,0.20318877]
[1719148094304,1.55004819,64491.0,64490.0,0.18118463]
[1719148096159,1.55004819,64491.0,64490.0,0.20318877]
[1719148096160,1.5499319,64491.0,64490.0,0.20318877]
[1719148096372,1.5499319,64491.0,64490.0,0.18118463]
[1719148099100,1.49573374,64491.0,64490.0,0.18118463]
[1719148099317,1.5494669,64491.0,64490.0,0.18118463]
[1719148102270,1.5053992,64491.0,64490.0,0.18118463]
[1719148102517,1.54893919,64491.0,64490.0,0.18118463]
[1719148102774,1.5489405,64491.0,64490.0,0.18118463]
[1719148103973,1.54893877,64491.0,64490.0,0.18118463]
[1719148105558,1.54894106,64491.0,64490.0,0.18118463]
[1719148108622,1.54865947,64491.0,64490.0,0.18118463]
[1719148111846,1.54788336,64491.0,64490.0,0.18118463]
[1719148112937,1.54788336,64491.0,64490.0,0.20318877]
[1719148113736,1.54788336,64491.0,64490.0,0.18118463]
[1719148115027,1.54757351,64491.0,64490.0,0.18118463]
[1719148118177,1.5474297,64491.0,64490.0,0.18118463]
[1719148118994,1.25633263,64491.0,64490.0,0.18118463]
[1719148120058,1.41139263,64491.0,64490.0,0.18118463]
[1719148120902,1.51139263,64491.0,64490.0,0.18118463]
[1719148121353,1.5018592,64491.0,64490.0,0.18118463]
[1719148121570,1.51152511,64491.0,64490.0,0.18118463]
[1719148121784,1.51149407,64491.0,64490.0,0.18118463]
[1719148122594,1.51139256,64491.0,64490.0,0.18118463]
[1719148122975,1.45969667,64491.0,64490.0,0.18118463]
[1719148123150,1.51139256,64491.0,64490.0,0.18118463]
[1719148124657,1.51151958,64491.0,64490.0,0.18118463]
[1719148126728,1.45969667,64491.0,64490.0,0.18118463]
[1719148126924,1.51229167,64491.0,64490.0,0.18118463]
[1719148127913,1.51199634,64491.0,64490.0,0.18118463]
[1719148130065,1.51199634,64491.0,64490.0,0.09978463]
[1719148130260,1.51199634,64491.0,64490.0,0.00128463]
[1719148130947,1.46936267,64491.0,64490.0,0.00128463]
[1719148131151,1.51150028,64491.0,64490.0,0.00128463]
[1719148131366,1.45969667,64491.0,64490.0,0.00128463]
[1719148131576,1.51150046,64491.0,64490.0,0.00128463]
[1719148137227,1.50179848,64491.0,64490.0,0.00128463]
[1719148137440,1.51146453,64491.0,64490.0,0.00128463]
[1719148140577,1.51155035,64491.0,64490.0,0.00128463]
[1719148140991,1.5115513,64491.0,64490.0,0.00128463]
[1719148142857,1.51158472,64491.0,64490.0,0.00128463]
[1719148145973,1.51166417,64491.0,64490.0,0.00128463]
[1719148148571,2.17702489,64491.0,64490.0,0.00128463]
[1719148148857,2.06761983,64491.0,64490.0,0.00128463]
[1719148149072,1.91038279,64491.0,64490.0,0.00128463]
[1719148149478,1.77311667,64491.0,64490.0,0.00128463]
[1719148149633,1.90110789,64491.0,64490.0,0.00128463]
[1719148149841,1.91077459,64491.0,64490.0,0.00128463]
[1719148150246,1.91177459,64491.0,64490.0,0.00128463]
[1719148150660,1.91207269,64491.0,64490.0,0.00128463]
[1719148152251,1.77948346,64491.0,64490.0,0.00128463]
[1719148152475,1.91198491,64491.0,64490.0,0.00128463]
[1719148153006,1.91198491,64491.0,64490.0,1e-08]
[1719148153229,2.01591369,64491.0,64490.0,1e-08]
[1719148153389,2.32603369,64491.0,64490.0,1e-08]
[1719148154198,2.32003369,64491.0,64490.0,1e-08]
[1719148154398,2.32503369,64491.0,64490.0,1e-08]
[1719148154967,2.58853369,64491.0,64490.0,1e-08]
[1719148155175,1.395823,64478.0,64477.0,0.1034]
[1719148155390,1.60101283,64478.0,64477.0,0.1034]
[1719148155679,1.75157671,64478.0,64477.0,0.1034]
[1719148156051,1.70440956,64478.0,64477.0,0.1034]
[1719148156250,1.55384601,64478.0,64477.0,0.1034]
[1719148157599,1.70455447,64478.0,64477.0,0.1044]
[1719148157795,1.71455447,64478.0,64477.0,0.1054]
[1719148158000,1.57484601,64478.0,64477.0,0.1054]
[1719148158419,1.516823,64478.0,64477.0,0.1054]
[1719148158592,1.71593407,64478.0,64477.0,0.1054]
[1719148158992,1.71593847,64478.0,64477.0,0.1054]
[1719148159342,1.57629756,64478.0,64477.0,0.1054]
[1719148160131,1.57649794,64478.0,64477.0,0.1054]
[1719148161579,1.52867202,64478.0,64477.0,0.1054]
[1719148161748,1.57678721,64478.0,64477.0,0.1054]
[1719148163514,1.61758786,64478.0,64477.0,0.002]
[1719148163752,1.92777086,64478.0,64477.0,0.002]
[1719148163878,1.57678721,64478.0,64477.0,0.002]
[1719148164670,1.516823,64478.0,64477.0,0.002]
[1719148164871,1.57757536,64478.0,64477.0,0.002]
[1719148165077,1.60873245,64478.0,64477.0,0.002]
[1719148167885,1.54798009,64478.0,64477.0,0.002]
[1719148168051,1.60981946,64478.0,64477.0,0.002]
[1719148168250,1.7623736,64478.0,64477.0,0.002]
[1719148168461,1.76242565,64478.0,64477.0,0.002]
[1719148169860,1.60987151,64478.0,64477.0,0.1101]
[1719148171111,1.54798009,64478.0,64477.0,0.1101]
[1719148171287,1.60955102,64478.0,64477.0,0.1101]
[1719148173106,1.63718566,64478.0,64477.0,0.1101]
[1719148173699,1.75343307,64478.0,64477.0,0.1937]
[1719148174390,1.75340915,64478.0,64477.0,0.1937]
[1719148174730,1.75340915,64478.0,64477.0,0.1985]
[1719148175022,1.29934197,64478.0,64477.0,0.39029785]
[1719148175193,1.39233689,64478.0,64477.0,0.37253269]
[1719148175348,1.39233689,64478.0,64477.0,0.39454953]
[1719148175560,1.39233689,64478.0,64477.0,0.43400448]
[1719148175973,1.39233689,64478.0,64477.0,0.41451637]
[1719148176379,1.39233689,64478.0,64477.0,0.37506142]
[1719148177323,1.39412472,64478.0,64477.0,0.37506142]
[1719148177577,1.39412472,64478.0,64477.0,0.62711065]
[1719148177780,1.33080456,64478.0,64477.0,0.62711065]
[1719148177986,1.39412731,64478.0,64477.0,0.60762254]
[1719148178123,1.39412731,64478.0,64477.0,0.64831676]
[1719148178333,1.39412731,64478.0,64477.0,0.6703336]
[1719148178932,1.37087542,64478.0,64477.0,0.6703336]
[1719148180141,1.37087542,64478.0,64477.0,0.68982171]
[1719148180361,1.23779709,64478.0,64477.0,0.68982171]
[1719148180556,1.37033864,64478.0,64477.0,0.68982171]
[1719148180763,1.37033864,64478.0,64477.0,0.66780487]
[1719148181195,1.37033864,64478.0,64477.0,0.68982171]
[1719148181446,1.37034189,64478.0,64477.0,0.68982171]
[1719148181808,1.37034189,64478.0,64477.0,0.64831676]
[1719148182016,1.37034189,64478.0,64477.0,0.49377218]
[1719148182210,1.37034189,64478.0,64477.0,0.51578902]
[1719148182452,1.37034189,64478.0,64477.0,0.6703336]
[1719148182667,1.23779709,64478.0,64477.0,0.6703336]
[1719148182883,1.30043788,64478.0,64477.0,0.6703336]
[1719148183073,1.37020646,64478.0,64477.0,0.64831676]
[1719148183456,1.37020646,64478.0,64477.0,0.6703336]
[1719148183659,1.30756567,64478.0,64477.0,0.6703336]
[1719148183861,1.37018302,64478.0,64477.0,0.6703336]
[1719148185122,1.30041444,64478.0,64477.0,0.6703336]
[1719148186578,1.30041444,64478.0,64477.0,0.6712686]
[1719148186980,1.30085752,64478.0,64477.0,0.6712686]
[1719148187415,1.30085709,64478.0,64477.0,0.6712686]
[1719148188545,1.30077018,64478.0,64477.0,0.6712686]
[1719148188750,1.30077018,64478.0,64477.0,0.51672402]
[1719148188948,1.39381117,64478.0,64477.0,0.6712686]
[1719148189606,1.39381117,64478.0,64477.0,0.51672402]
[1719148190214,1.39370548,64478.0,64477.0,0.51672402]
[1719148190670,1.39370548,64478.0,64477.0,0.49470718]
[1719148190861,1.30064601,64478.0,64477.0,0.64925176]
[1719148190988,1.39370751,64478.0,64477.0,0.64925176]
[1719148191192,1.39370751,64478.0,64477.0,0.67027249]
[1719148191414,1.30064601,64478.0,64477.0,0.67027249]
[1719148191612,1.39371311,64478.0,64477.0,0.67027249]
[1719148193073,1.39371311,64478.0,64477.0,0.6897606]
[1719148193272,1.30073804,64478.0,64477.0,0.6897606]
[1719148193466,1.39381559,64478.0,64477.0,0.6897606]
[1719148193698,1.39381559,64478.0,64477.0,0.66873987]
[1719148194123,1.39381559,64478.0,64477.0,0.6897606]
[1719148195087,1.39381559,64478.0,64477.0,0.67027249]
[1719148196180,1.39381559,64478.0,64477.0,0.6897606]
[1719148196410,1.30073804,64478.0,64477.0,0.67027249]
[1719148196635,1.30073804,64478.0,64477.0,0.6897606]
[1719148196636,1.39435391,64478.0,64477.0,0.6897606]
[1719148196864,1.23779709,64478.0,64477.0,0.6897606]
[1719148197110,1.39443749,64478.0,64477.0,0.6897606]
[1719148197333,1.39443749,64478.0,64477.0,0.60602881]
[1719148197794,1.39443749,64478.0,64477.0,0.62704954]
[1719148198218,1.39443856,64478.0,64477.0,0.62704954]
[1719148198504,1.39443856,64478.0,64477.0,0.60602881]
[1719148198878,1.39443856,64478.0,64477.0,0.62704954]
[1719148199471,1.30157191,64478.0,64477.0,0.60756143]
[1719148199698,1.3946598,64478.0,64477.0,0.60756143]
[1719148200202,1.3946598,64478.0,64477.0,0.5865407]
[1719148200422,1.3946598,64478.0,64477.0,0.60757633]
[1719148201052,1.3946598,64478.0,64477.0,0.67028277]
[1719148201449,1.30157191,64478.0,64477.0,0.67028277]
[1719148201781,1.30157191,64478.0,64477.0,0.64924714]
[1719148201986,1.30145496,64478.0,64477.0,0.64924714]
[1719148202149,1.30145496,64478.0,64477.0,0.67048777]
[1719148202352,1.30145496,64478.0,64477.0,0.68997588]
[1719148205152,1.23779709,64478.0,64477.0,0.68997588]
[1719148205289,1.30320086,64478.0,64477.0,0.68997588]
[1719148205494,1.23779709,64478.0,64477.0,0.68997588]
[1719148205717,1.30320086,64478.0,64477.0,0.67048777]
[1719148206030,1.30320086,64478.0,64477.0,0.64924714]
[1719148206233,1.30320086,64478.0,64477.0,0.67048777]
[1719148206775,1.30294596,64478.0,64477.0,0.67048777]
[1719148206974,1.30294596,64478.0,64477.0,0.68997588]
[1719148207545,1.41931091,64478.0,64477.0,0.68997588]
[1719148207953,1.30294596,64478.0,64477.0,0.66873525]
[1719148208222,1.23779709,64478.0,64477.0,0.66873525]
[1719148208444,1.41929629,64478.0,64477.0,0.68997588]
[1719148208628,1.41929629,64478.0,64477.0,0.66873525]
[1719148208895,1.41929629,64478.0,64477.0,0.68997588]
[1719148209121,1.41929629,64478.0,64477.0,0.62726944]
[1719148209353,1.41929629,64478.0,64477.0,0.60778133]
[1719148210768,1.41929629,64478.0,64477.0,0.45323675]
[1719148210941,1.41929629,64478.0,64477.0,0.60778133]
[1719148211389,1.23779709,64478.0,64477.0,0.60778133]
[1719148211548,1.30271537,64478.0,64477.0,0.60778133]
[1719148211796,1.4191121,64478.0,64477.0,0.5865407]
[1719148212233,1.4191121,64478.0,64477.0,0.60778133]
[1719148212813,1.4191121,64478.0,64477.0,0.62726944]
[1719148213240,1.30271537,64478.0,64477.0,0.62726944]
[1719148213426,1.30271537,64478.0,64477.0,0.60602881]
[1719148213627,1.30271537,64478.0,64477.0,0.62726944]
[1719148214232,1.4191121,64478.0,64477.0,0.62726944]
[1719148214437,1.23779709,64478.0,64477.0,0.5865407]
[1719148214764,1.23779709,64478.0,64477.0,0.60778133]
[1719148214765,1.30267474,64478.0,64477.0,0.60778133]
[1719148214952,1.23779709,64478.0,64477.0,0.60778133]
[1719148215125,1.30284266,64478.0,64477.0,0.60778133]
[1719148215325,1.41926906,64478.0,64477.0,0.60778133]
[1719148216422,1.41911209,64478.0,64477.0,0.60778133]
[1719148217171,1.30268569,64478.0,64477.0,0.60778133]
[1719148217663,1.23779709,64478.0,64477.0,0.60778133]
[1719148217908,1.30268217,64478.0,64477.0,0.60778133]
[1719148220572,1.30268217,64478.0,64477.0,0.67050827]
[1719148220783,1.23779709,64478.0,64477.0,0.67050827]
[1719148220988,1.30271117,64478.0,64477.0,0.67050827]
[1719148222292,1.30271117,64478.0,64477.0,0.68999638]
[1719148223899,1.30343129,64478.0,64477.0,0.68999638]
[1719148224323,1.23779709,64478.0,64477.0,0.66875575]
[1719148224499,1.28867541,64478.0,64477.0,0.66875575]
[1719148224700,1.3034319,64478.0,64477.0,0.68999638]
[1719148225694,1.30034687,64478.0,64477.0,0.68999638]
[1719148226156,1.30034687,64478.0,64477.0,0.66875575]
[1719148226526,1.30034687,64478.0,64477.0,0.68999638]
[1719148227116,1.30041241,64478.0,64477.0,0.68999638]
[1719148227584,1.30041241,64478.0,64477.0,0.66875575]
[1719148227904,1.30041241,64478.0,64477.0,0.68999638]
[1719148230209,1.30065125,64478.0,64477.0,0.68999638]
[1719148230595,1.30065125,64478.0,64477.0,0.64926764]
[1719148230951,1.30065125,64478.0,64477.0,0.67050827]
[1719148232383,1.30065125,64478.0,64477.0,0.68999638]
[1719148233389,1.30067486,64478.0,64477.0,0.68999638]
[1719148233794,1.30067486,64478.0,64477.0,0.66875575]
[1719148234168,1.30067486,64478.0,64477.0,0.69024205]
[1719148234919,1.23779709,64478.0,64477.0,0.69024205]
[1719148235072,1.30094231,64478.0,64477.0,0.69024205]
[1719148235277,1.30094231,64478.0,64477.0,0.66875575]
[1719148235479,1.30094231,64478.0,64477.0,0.69024205]
[1719148236467,1.30098777,64478.0,64477.0,0.69024205]
[1719148239570,1.30245457,64478.0,64477.0,0.69024205]
[1719148239967,1.30245457,64478.0,64477.0,0.66875575]
[1719148240367,1.30245457,64478.0,64477.0,0.69024205]
[1719148242435,1.30245457,64478.0,64477.0,0.67075394]
[1719148242834,1.23779709,64478.0,64477.0,0.67075394]
[1719148243195,1.23779709,64478.0,64477.0,0.64926764]
[1719148243558,1.23779709,64478.0,64477.0,0.67075394]
[1719148244836,1.25197059,64478.0,64477.0,0.67075394]
[1719148245245,1.23779709,64478.0,64477.0,0.67075394]
[1719148245893,1.30197803,64478.0,64477.0,0.67075394]
[1719148246367,1.30197778,64478.0,64477.0,0.67075394]
[1719148246835,1.30197778,64478.0,64477.0,0.608027]
[1719148247081,1.3020965,64478.0,64477.0,0.608027]
[1719148248725,1.23779709,64478.0,64477.0,0.62751511]
[1719148248911,1.30197366,64478.0,64477.0,0.62751511]
[1719148249127,1.30197366,64478.0,64477.0,0.608027]
[1719148249410,1.30197366,64478.0,64477.0,0.5865407]
[1719148249595,1.30197366,64478.0,64477.0,0.67077851]
[1719148251340,1.30197366,64478.0,64477.0,0.69026662]
[1719148251879,1.30197366,64478.0,64477.0,0.67077851]
[1719148252045,1.30201382,64478.0,64477.0,0.67077851]
[1719148252464,1.30201382,64478.0,64477.0,0.64929221]
[1719148252809,1.30201382,64478.0,64477.0,0.67077851]
[1719148253013,1.30201382,64478.0,64477.0,0.69026662]
[1719148255143,1.23779709,64478.0,64477.0,0.69026662]
[1719148255447,1.30495604,64478.0,64477.0,0.69026662]
[1719148255647,1.30497562,64478.0,64477.0,0.66878032]
[1719148256024,1.30497562,64478.0,64477.0,0.69026662]
[1719148256850,1.23779709,64478.0,64477.0,0.69026662]
[1719148257061,1.30497922,64478.0,64477.0,0.69026662]
[1719148257369,1.30497922,64478.0,64477.0,0.66878032]
[1719148257580,1.30497922,64478.0,64477.0,0.64929221]
[1719148257781,1.30497922,64478.0,64477.0,0.67077851]
[1719148258344,1.30497854,64478.0,64477.0,0.67077851]
[1719148258916,1.30497854,64478.0,64477.0,0.69026662]
[1719148260926,1.30489849,64478.0,64477.0,0.69026662]
[1719148261286,1.30489849,64478.0,64477.0,0.66878032]
[1719148261498,1.30489849,64478.0,64477.0,0.69026662]
[1719148263828,1.28771978,64478.0,64477.0,0.69026662]
[1719148264147,1.23779709,64478.0,64477.0,0.66878032]
[1719148264369,1.30147186,64478.0,64477.0,0.66878032]
[1719148264503,1.30147186,64478.0,64477.0,0.69026662]
[1719148266981,1.25161694,64478.0,64477.0,0.67077851]
[1719148267206,1.30160407,64478.0,64477.0,0.69026662]
[1719148267397,1.30160407,64478.0,64477.0,0.67077851]
[1719148267623,1.30160407,64478.0,64477.0,0.69026662]
[1719148268194,1.32633364,64478.0,64477.0,0.69026662]
[1719148270142,1.32645707,64478.0,64477.0,0.69026662]
[1719148270576,1.32645707,64478.0,64477.0,0.64929221]
[1719148271025,1.32645707,64478.0,64477.0,0.67077851]
[1719148273429,1.32659508,64478.0,64477.0,0.67077851]
[1719148273754,1.32659149,64478.0,64477.0,0.64929221]
[1719148274153,1.32659149,64478.0,64477.0,0.67077851]
[1719148276539,1.32268925,64478.0,64477.0,0.69026662]
[1719148279608,1.26252666,64478.0,64477.0,0.69026662]
[1719148279828,1.32244361,64478.0,64477.0,0.69026662]
[1719148280047,1.32244361,64478.0,64477.0,0.66878032]
[1719148280514,1.32244361,64478.0,64477.0,0.69026662]
[1719148282233,1.32244361,64478.0,64477.0,0.71326662]
[1719148282695,1.26252666,64478.0,64477.0,0.71326662]
[1719148282911,1.32270054,64478.0,64477.0,0.71326662]
[1719148283122,1.26252666,64478.0,64477.0,0.69178032]
[1719148283340,1.32270055,64478.0,64477.0,0.69178032]
[1719148283559,1.32270055,64478.0,64477.0,0.71326662]
[1719148283788,1.32270055,64478.0,64477.0,0.69178032]
[1719148285410,1.32355055,64478.0,64477.0,0.69178032]
[1719148286074,1.32336139,64478.0,64477.0,0.69178032]
[1719148289010,1.3114994,64478.0,64477.0,0.69178032]
[1719148289180,1.321614,64478.0,64477.0,0.69178032]
[1719148290475,1.321614,64478.0,64477.0,0.67229221]
[1719148290713,1.321614,64478.0,64477.0,0.69178032]
[1719148291066,1.321614,64478.0,64477.0,0.71326662]
[1719148292026,1.26337666,64478.0,64477.0,0.71326662]
[1719148292234,1.32043366,64478.0,64477.0,0.69178032]
[1719148292648,1.31991246,64478.0,64477.0,0.71326662]
[1719148293647,1.31991246,64478.0,64477.0,0.69377851]
[1719148293850,1.31996738,64478.0,64477.0,0.69377851]
[1719148294060,1.31996738,64478.0,64477.0,0.71326662]
[1719148295338,1.31997503,64478.0,64477.0,0.71326662]
[1719148295567,1.31997503,64478.0,64477.0,0.67229221]
[1719148295806,1.31997503,64478.0,64477.0,0.69377851]
[1719148296008,1.31997503,64478.0,64477.0,0.71326662]
[1719148296353,1.31997503,64478.0,64477.0,0.69377851]
[1719148297341,1.31997503,64478.0,64477.0,0.71326662]
[1719148297494,1.31997503,64478.0,64477.0,0.69377851]
[1719148297690,1.31997503,64478.0,64477.0,0.71326662]
[1719148298116,1.31997503,64478.0,64477.0,0.69377851]
[1719148298663,1.31949651,64478.0,64477.0,0.69377851]
[1719148299002,1.31949651,64478.0,64477.0,0.67229221]
[1719148299209,1.31949651,64478.0,64477.0,0.69377851]
[1719148301675,1.31827207,64478.0,64477.0,0.69377851]
[1719148302055,1.31827364,64478.0,64477.0,0.67229221]
[1719148302479,1.31827364,64478.0,64477.0,0.69377851]
[1719148303297,1.31827339,64478.0,64477.0,0.69377851]
[1719148304672,1.26337666,64478.0,64477.0,0.69377851]
[1719148304877,1.31830185,64478.0,64477.0,0.71326662]
[1719148305075,1.31830185,64478.0,64477.0,0.69377851]
[1719148305682,1.31830185,64478.0,64477.0,0.71326662]
[1719148305981,1.31830185,64478.0,64477.0,0.69377851]
[1719148306223,1.31830185,64478.0,64477.0,0.71326662]
[1719148306420,1.27304345,64478.0,64477.0,0.71326662]
[1719148306642,1.31827845,64478.0,64477.0,0.71326662]
[1719148307777,1.31827845,64478.0,64477.0,0.69377851]
[1719148308009,1.26337666,64478.0,64477.0,0.71326662]
[1719148308183,1.31829261,64478.0,64477.0,0.69377851]
[1719148308356,1.31829261,64478.0,64477.0,0.71326662]
[1719148309310,1.31829261,64478.0,64477.0,0.53923393]
[1719148309444,1.31829261,64478.0,64477.0,0.69377851]